[Event "Queens Festival Final Team 2022"]
[Site "Tornelo"]
[Date "2022.06.26"]
[Round "2.5"]
[White "Maksimovic, Suzana"]
[Black "Perez Rodriguez, Jennifer"]
[Result "1-0"]
[ECO "D36"]
[WhiteElo "2145"]
[BlackElo "2251"]
[Annotator "RC"]
[PlyCount "87"]
[EventDate "2022.06.24"]
[EventType "team-tourn"]
[EventCountry "NET"]
[SourceTitle "playchess.com"]
[Source "ChessBase"]
[SourceQuality "1"]
[WhiteTeam "Serbia"]
[BlackTeam "Paraguay"]
[WhiteTeamCountry "SRB"]
[BlackTeamCountry "PAR"]
[TimeControl "180+2"]

1. d4 {[%emt 0:00:02]} Nf6 {[%emt 0:00:07]} 2. c4 {[%emt 0:00:04]} e6 {[%emt 0:00:02]} 3. Nc3 {[%emt 0:00:02]} d5 {[%emt 0:00:01]} 4. cxd5 {[%emt 0:00:02]} exd5 {[%emt 0:00:02]} 5. Bg5 {[%emt 0:00:02]} Be7 {[%emt 0:00:01]} 6. Qc2 {[%emt 0:00:02]} c6 {[%emt 0:00:01]} 7. e3 {[%emt 0:00:02]} Nbd7 {[%emt 0:00:00]} 8. Bd3 {[%emt 0:00:01]} Nh5 {[%emt 0:00:02]} 9. Bxe7 {[%emt 0:00:07]} Qxe7 {[%emt 0:00:00]} 10. Nge2 {[%emt 0:00:11]} g6 {[%emt 0:00:02]} 11. O-O {[%emt 0:00:25]} O-O {[%emt 0:00:09]} 12. Rae1 {[%emt 0:00:07]} Re8 {[%emt 0:00:18]} 13. Nd1 {[%emt 0:00:10]} c5 {[%emt 0:00:09]} 14. dxc5 {[%emt 0:00:08]} Nxc5 {[%emt 0:00:01]} 15. Nd4 {[%emt 0:00:12]} Bd7 {[%emt 0:00:08]} 16. Be2 {[%emt 0:00:08]} Ng7 {[%emt 0:00:06]} 17. f3 {[%emt 0:00:16]} Rac8 {[%emt 0:00:04]} 18. Qd2 {[%emt 0:00:03]} Qe5 {[%emt 0:00:23]} 19. Bb5 {[%emt 0:00:17]} Bxb5 {[%emt 0:00:10]} 20. Nxb5 {[%emt 0:00:02]} a6 {[%emt 0:00:01]} 21. Nd4 {[%emt 0:00:17]} Nf5 {[%emt 0:00:11]} 22. Nxf5 {[%emt 0:00:11]} Qxf5 {[%emt 0:00:01]} 23. Nc3 {[%emt 0:00:12]} Qd3 {[%emt 0:00:31]} 24. Re2 {[%emt 0:00:07]} Qxd2 {[%emt 0:00:16]} 25. Rxd2 {[%emt 0:00:01]} Rxe3 {[%emt 0:00:04]} 26. Rxd5 {[%emt 0:00:03]} Rd3 {[%emt 0:00:05]} 27. Rd1 {[%emt 0:00:04]} Rxd1+ {[%emt 0:00:03]} 28. Rxd1 {[%emt 0:00:02]} Kg7 {[%emt 0:00:02]} 29. Kf2 {[%emt 0:00:02]} Ne6 {[%emt 0:00:08]} 30. Rd7 {[%emt 0:00:07]} Nc7 {[%emt 0:00:12]} 31. Ne4 {[%emt 0:00:11]} Nb5 {[%emt 0:00:08]} 32. a4 {[%emt 0:00:15]} Rc2+ {[%emt 0:00:06]} 33. Kg3 {[%emt 0:00:02]} Na7 {[%emt 0:00:02]} 34. Rxb7 {[%emt 0:00:03]} Nc6 {[%emt 0:00:01]} 35. Nd6 {[%emt 0:00:02]} Ne5 {[%emt 0:00:04]} 36. f4 {[%emt 0:00:02]} Nd3 {[%emt 0:00:08]} 37. Rxf7+ {[%emt 0:00:07]} Kg8 {[%emt 0:00:02]} 38. Ra7 {[%emt 0:00:04]} Nc5 {[%emt 0:00:18]} 39. f5 {[%emt 0:00:02]} gxf5 {[%emt 0:00:01]} 40. Nxf5 {[%emt 0:00:01]} Ne4+ {[%emt 0:00:01]} 41. Kf4 {[%emt 0:00:02]} Nf6 {[%emt 0:00:04]} 42. Nh6+ {[%emt 0:00:02]} Kh8 {[%emt 0:00:08]} 43. Rf7 {[%emt 0:00:02]} Rf2+ {[%emt 0:00:01]} 44. Kg3 {[%emt 0:00:03]} 1-0

[Event "Queens Festival Final Team 2022"]
[Site "Tornelo"]
[Date "2022.06.26"]
[Round "2.5"]
[White "Vukosavljevic, Tatjana"]
[Black "Perez, Dalila"]
[Result "0-1"]
[ECO "D02"]
[WhiteElo "1758"]
[BlackElo "1799"]
[Annotator "NA RC"]
[PlyCount "98"]
[EventDate "2022.06.24"]
[EventType "team-tourn"]
[EventCountry "NET"]
[SourceTitle "playchess.com"]
[Source "ChessBase"]
[SourceQuality "1"]
[WhiteTeam "Serbia"]
[BlackTeam "Paraguay"]
[WhiteTeamCountry "SRB"]
[BlackTeamCountry "PAR"]
[TimeControl "180+2"]

1. Nf3 {[%emt 0:00:02]} d5 {[%emt 0:00:07]} 2. g3 {[%emt 0:00:02]} Nf6 {[%emt 0:00:03]} 3. Bg2 {[%emt 0:00:01]} c5 {[%emt 0:00:02]} 4. O-O {[%emt 0:00:01]} Nc6 {[%emt 0:00:02]} 5. d4 {[%emt 0:00:01]} Bf5 {[%emt 0:00:04]} 6. c4 {[%emt 0:00:08]} e6 {[%emt 0:00:16]} 7. e3 {[%emt 0:00:09]} Be7 {[%emt 0:00:04]} 8. b3 {[%emt 0:00:11]} O-O {[%emt 0:00:02]} 9. Bb2 {[%emt 0:00:02]} Rc8 {[%emt 0:00:02]} 10. a3 {[%emt 0:00:08]} Qb6 {[%emt 0:00:12]} 11. Nc3 {[%emt 0:00:15]} dxc4 {[%emt 0:00:10]} 12. Na4 {[%emt 0:00:17]} Qxb3 {[%emt 0:00:10]} 13. Qxb3 {[%emt 0:00:16]} cxb3 {[%emt 0:00:02]} 14. Nxc5 {[%emt 0:00:01]} b6 {[%emt 0:00:14]} 15. Nxb3 {[%emt 0:00:05]} Rfd8 {[%emt 0:00:16]} 16. Rac1 {[%emt 0:00:04]} Nd5 {[%emt 0:00:14]} 17. Rfe1 {[%emt 0:00:08]} Be4 {[%emt 0:00:11]} 18. Nbd2 {[%emt 0:00:04]} Bxf3 {[%emt 0:00:04]} 19. Bxf3 {[%emt 0:00:07]} Na5 {[%emt 0:00:03]} 20. Bxd5 {[%emt 0:00:22]} exd5 {[%emt 0:00:03]} 21. Kg2 {[%emt 0:00:09]} Bf6 {[%emt 0:00:02]} 22. Kf3 {[%emt 0:00:03]} g6 {[%emt 0:00:03]} 23. h4 {[%emt 0:00:20]} h5 {[%emt 0:00:06]} 24. Ke2 {[%emt 0:00:04]} Nc4 {[%emt 0:00:08]} 25. Nxc4 {[%emt 0:00:03]} dxc4 {[%emt 0:00:00]} 26. a4 {[%emt 0:00:04]} Rd5 {[%emt 0:00:05]} 27. Bc3 {[%emt 0:00:05]} a6 {[%emt 0:00:02]} 28. Rb1 {[%emt 0:00:03]} Rb8 {[%emt 0:00:06]} 29. Rb4 {[%emt 0:00:17]} b5 {[%emt 0:00:08]} 30. Reb1 {[%emt 0:00:03]} Be7 {[%emt 0:00:02]} 31. Rxc4 {[%emt 0:00:02]} Rdd8 {[%emt 0:00:12]} 32. axb5 {[%emt 0:00:02]} axb5 {[%emt 0:00:00]} 33. Rc6 {[%emt 0:00:02]} b4 {[%emt 0:00:05]} 34. Bd2 {[%emt 0:00:04]} b3 {[%emt 0:00:02]} 35. Rc3 {[%emt 0:00:03]} b2 {[%emt 0:00:12]} 36. Rc2 {[%emt 0:00:01]} Ba3 {[%emt 0:00:02]} 37. Bc3 {[%emt 0:00:02]} Rdc8 {[%emt 0:00:06]} 38. Kd3 {[%emt 0:00:01]} Rb3 {[%emt 0:00:01]} 39. Kd2 {[%emt 0:00:04]} Rbxc3 {[%emt 0:00:10]} 40. Rxc3 {[%emt 0:00:02]} Bb4 {[%emt 0:00:01]} 41. Ke2 {[%emt 0:00:18]} Bxc3 {[%emt 0:00:05]} 42. d5 {[%emt 0:00:02]} Kf8 {[%emt 0:00:02]} 43. e4 {[%emt 0:00:01]} Bg7 {[%emt 0:00:06]} 44. f4 {[%emt 0:00:03]} Rc1 {[%emt 0:00:02]} 45. Rxb2 {[%emt 0:00:08]} Bxb2 {[%emt 0:00:01]} 46. e5 {[%emt 0:00:01]} Ke7 {[%emt 0:00:03]} 47. Kd3 {[%emt 0:00:02]} Rc3+ {[%emt 0:00:02]} 48. Ke4 {[%emt 0:00:02]} Rxg3 {[%emt 0:00:02]} 49. d6+ {[%emt 0:00:02]} Ke6 {[%emt 0:00:02]} 0-1

[Event "Queens Festival Final Team 2022"]
[Site "Tornelo"]
[Date "2022.06.26"]
[Round "2.5"]
[White "Mayeregger Gonzalez, Renata"]
[Black "Vujovic, Vera"]
[Result "0-1"]
[ECO "B25"]
[WhiteElo "1461"]
[BlackElo "1353"]
[Annotator "NA RC"]
[PlyCount "134"]
[EventDate "2022.06.24"]
[EventType "team-tourn"]
[EventCountry "NET"]
[SourceTitle "playchess.com"]
[Source "ChessBase"]
[SourceQuality "1"]
[WhiteTeam "Paraguay"]
[BlackTeam "Serbia"]
[WhiteTeamCountry "PAR"]
[BlackTeamCountry "SRB"]
[TimeControl "180+2"]

1. e4 {[%emt 0:00:02]} c5 {[%emt 0:00:04]} 2. Nc3 {[%emt 0:00:03]} d6 {[%emt 0:00:01]} 3. g3 {[%emt 0:00:05]} Nc6 {[%emt 0:00:02]} 4. Bg2 {[%emt 0:00:02]} Nf6 {[%emt 0:00:01]} 5. Nge2 {[%emt 0:00:02]} g6 {[%emt 0:00:02]} 6. d3 {[%emt 0:00:00]} Bg7 {[%emt 0:00:01]} 7. O-O {[%emt 0:00:01]} Bg4 {[%emt 0:00:03]} 8. h3 {[%emt 0:00:01]} Bd7 {[%emt 0:00:03]} 9. Be3 {[%emt 0:00:03]} O-O {[%emt 0:00:02]} 10. Qd2 {[%emt 0:00:01]} Qc8 {[%emt 0:00:01]} 11. Kh2 {[%emt 0:00:02]} a6 {[%emt 0:00:02]} 12. Bh6 {[%emt 0:00:02]} b5 {[%emt 0:00:02]} 13. Bxg7 {[%emt 0:00:03]} Kxg7 {[%emt 0:00:01]} 14. Nd1 {[%emt 0:00:01]} Ne5 {[%emt 0:00:12]} 15. f4 {[%emt 0:00:07]} Nc6 {[%emt 0:00:02]} 16. Ne3 {[%emt 0:00:02]} Nd4 {[%emt 0:00:03]} 17. e5 {[%emt 0:00:09]} dxe5 {[%emt 0:00:04]} 18. Bxa8 {[%emt 0:00:04]} Qxa8 {[%emt 0:00:14]} 19. Nxd4 {[%emt 0:00:01]} exd4 {[%emt 0:00:04]} 20. Ng2 {[%emt 0:00:03]} Bc6 {[%emt 0:00:05]} 21. g4 {[%emt 0:00:07]} Bxg2 {[%emt 0:00:03]} 22. Qxg2 {[%emt 0:00:02]} Nd5 {[%emt 0:00:02]} 23. Rae1 {[%emt 0:00:16]} Ne3 {[%emt 0:00:02]} 24. Qxa8 {[%emt 0:00:03]} Nxf1+ {[%emt 0:00:02]} 25. Rxf1 {[%emt 0:00:06]} Rxa8 {[%emt 0:00:02]} 26. Re1 {[%emt 0:00:01]} e6 {[%emt 0:00:06]} 27. Kg3 {[%emt 0:00:02]} Rc8 {[%emt 0:00:04]} 28. Re4 {[%emt 0:00:13]} Rc6 {[%emt 0:00:07]} 29. h4 {[%emt 0:00:03]} f5 {[%emt 0:00:06]} 30. gxf5 {[%emt 0:00:04]} gxf5 {[%emt 0:00:19]} 31. Re5 {[%emt 0:00:03]} Kf6 {[%emt 0:00:03]} 32. h5 {[%emt 0:00:04]} c4 {[%emt 0:00:10]} 33. Re2 {[%emt 0:00:12]} cxd3 {[%emt 0:00:08]} 34. cxd3 {[%emt 0:00:02]} Rc1 {[%emt 0:00:08]} 35. a3 {[%emt 0:00:09]} Rd1 {[%emt 0:00:12]} 36. Kh4 {[%emt 0:00:13]} Rxd3 {[%emt 0:00:04]} 37. Rg2 {[%emt 0:00:03]} Rf3 {[%emt 0:00:05]} 38. h6 {[%emt 0:00:04]} Rxf4+ {[%emt 0:00:02]} 39. Kh5 {[%emt 0:00:05]} d3 {[%emt 0:00:05]} 40. Rg7 {[%emt 0:00:05]} d2 {[%emt 0:00:04]} 41. Rd7 {[%emt 0:00:05]} Rf2 {[%emt 0:00:06]} 42. Kh4 {[%emt 0:00:02]} Kg6 {[%emt 0:00:05]} 43. Kg3 {[%emt 0:00:02]} d1=Q {[%emt 0:00:13]} 44. Rxd1 {[%emt 0:00:04]} Rxb2 {[%emt 0:00:01]} 45. Rd6 {[%emt 0:00:03]} Rb3+ {[%emt 0:00:03]} 46. Kf4 {[%emt 0:00:02]} Kf6 {[%emt 0:00:09]} 47. Rxa6 {[%emt 0:00:04]} Rh3 {[%emt 0:00:04]} 48. Rb6 {[%emt 0:00:08]} Rxh6 {[%emt 0:00:03]} 49. Rxb5 {[%emt 0:00:02]} Rh4+ {[%emt 0:00:01]} 50. Ke3 {[%emt 0:00:03]} Ra4 {[%emt 0:00:02]} 51. Rb3 {[%emt 0:00:05]} h5 {[%emt 0:00:01]} 52. Kf3 {[%emt 0:00:02]} h4 {[%emt 0:00:02]} 53. Kg2 {[%emt 0:00:02]} e5 {[%emt 0:00:03]} 54. Rb6+ {[%emt 0:00:04]} Kg5 {[%emt 0:00:01]} 55. Rb3 {[%emt 0:00:02]} e4 {[%emt 0:00:02]} 56. Kh3 {[%emt 0:00:02]} Ra8 {[%emt 0:00:10]} 57. Rc3 {[%emt 0:00:04]} Kf4 {[%emt 0:00:03]} 58. Rb3 {[%emt 0:00:12]} e3 {[%emt 0:00:03]} 59. Rb4+ {[%emt 0:00:02]} Kf3 {[%emt 0:00:02]} 60. Rb5 {[%emt 0:00:09]} f4 {[%emt 0:00:04]} 61. a4 {[%emt 0:00:03]} Rxa4 {[%emt 0:00:02]} 62. Rb2 {[%emt 0:00:09]} e2 {[%emt 0:00:02]} 63. Rb3+ {[%emt 0:00:20]} Kf2 {[%emt 0:00:02]} 64. Rg3 {[%emt 0:00:07]} hxg3 {[%emt 0:00:08]} 65. Kg4 {[%emt 0:00:02]} f3+ {[%emt 0:00:02]} 66. Kh3 {[%emt 0:00:01]} g2 {[%emt 0:00:04]} 67. Kh2 {[%emt 0:00:06]} Rh4# {[%emt 0:00:01]} 0-1

[Event "Queens Festival Final Team 2022"]
[Site "Tornelo"]
[Date "2022.06.26"]
[Round "2.5"]
[White "Mayeregger Gonzalez, Fiorella"]
[Black "Vujcic, Milena"]
[Result "0-1"]
[ECO "A35"]
[WhiteElo "1284"]
[BlackElo "1987"]
[Annotator "NA RC"]
[PlyCount "96"]
[EventDate "2022.06.24"]
[EventType "team-tourn"]
[EventCountry "NET"]
[SourceTitle "playchess.com"]
[Source "ChessBase"]
[SourceQuality "1"]
[WhiteTeam "Paraguay"]
[BlackTeam "Serbia"]
[WhiteTeamCountry "PAR"]
[BlackTeamCountry "SRB"]
[TimeControl "180+2"]

1. Nf3 {[%emt 0:00:02]} g6 {[%emt 0:00:05]} 2. c4 {[%emt 0:00:03]} c5 {[%emt 0:00:02]} 3. e3 {[%emt 0:00:01]} Bg7 {[%emt 0:00:09]} 4. d4 {[%emt 0:00:03]} cxd4 {[%emt 0:00:04]} 5. exd4 {[%emt 0:00:02]} d6 {[%emt 0:00:01]} 6. Nc3 {[%emt 0:00:02]} Nc6 {[%emt 0:00:02]} 7. Be2 {[%emt 0:00:07]} Nf6 {[%emt 0:00:02]} 8. O-O {[%emt 0:00:02]} O-O {[%emt 0:00:02]} 9. b3 {[%emt 0:00:07]} d5 {[%emt 0:00:02]} 10. Bg5 {[%emt 0:00:11]} Ne4 {[%emt 0:00:10]} 11. Nxd5 {[%emt 0:00:31]} Nxg5 {[%emt 0:00:03]} 12. Nxg5 {[%emt 0:00:03]} Nxd4 {[%emt 0:00:06]} 13. Nf3 {[%emt 0:00:50]} Nxf3+ {[%emt 0:00:12]} 14. Bxf3 {[%emt 0:00:00]} Bxa1 {[%emt 0:00:03]} 15. Qxa1 {[%emt 0:00:02]} f6 {[%emt 0:00:02]} 16. Re1 {[%emt 0:00:07]} e5 {[%emt 0:00:02]} 17. Qc3 {[%emt 0:00:11]} Be6 {[%emt 0:00:04]} 18. g3 {[%emt 0:00:06]} Rc8 {[%emt 0:00:20]} 19. Qb4 {[%emt 0:00:10]} Qd7 {[%emt 0:00:17]} 20. Ne7+ {[%emt 0:00:06]} Kf7 {[%emt 0:00:18]} 21. Nxc8 {[%emt 0:00:03]} Rxc8 {[%emt 0:00:02]} 22. Qxb7 {[%emt 0:00:11]} Rc7 {[%emt 0:00:02]} 23. Qe4 {[%emt 0:00:07]} Qd2 {[%emt 0:00:08]} 24. Qe2 {[%emt 0:00:07]} Qb4 {[%emt 0:00:05]} 25. Rd1 {[%emt 0:00:06]} a5 {[%emt 0:00:11]} 26. Bd5 {[%emt 0:00:03]} Bxd5 {[%emt 0:00:09]} 27. Rxd5 {[%emt 0:00:05]} a4 {[%emt 0:00:03]} 28. Qd3 {[%emt 0:00:06]} axb3 {[%emt 0:00:12]} 29. axb3 {[%emt 0:00:03]} Ke7 {[%emt 0:00:17]} 30. Rb5 {[%emt 0:00:06]} Qe1+ {[%emt 0:00:03]} 31. Kg2 {[%emt 0:00:02]} e4 {[%emt 0:00:05]} 32. Qe3 {[%emt 0:00:04]} Qb1 {[%emt 0:00:07]} 33. Qb6 {[%emt 0:00:05]} Rd7 {[%emt 0:00:04]} 34. Qc5+ {[%emt 0:00:02]} Kf7 {[%emt 0:00:03]} 35. Qc6 {[%emt 0:00:05]} Qd3 {[%emt 0:00:02]} 36. Rb7 {[%emt 0:00:03]} Qf3+ {[%emt 0:00:04]} 37. Kg1 {[%emt 0:00:03]} Qd1+ {[%emt 0:00:09]} 38. Kg2 {[%emt 0:00:03]} Qf3+ {[%emt 0:00:03]} 39. Kg1 {[%emt 0:00:03]} Rxb7 {[%emt 0:00:05]} 40. Qxb7+ {[%emt 0:00:02]} Ke6 {[%emt 0:00:01]} 41. Qc6+ {[%emt 0:00:02]} Kf5 {[%emt 0:00:03]} 42. Qd7+ {[%emt 0:00:02]} Kg5 {[%emt 0:00:03]} 43. h4+ {[%emt 0:00:02]} Kh6 {[%emt 0:00:03]} 44. Qd8 {[%emt 0:00:05]} e3 {[%emt 0:00:03]} 45. fxe3 {[%emt 0:00:03]} Qxg3+ {[%emt 0:00:03]} 46. Kf1 {[%emt 0:00:02]} Qf3+ {[%emt 0:00:02]} 47. Ke1 {[%emt 0:00:02]} Qxe3+ {[%emt 0:00:02]} 48. Kd1 {[%emt 0:00:03]} Qxb3+ {[%emt 0:00:02]} 0-1

[Event "Queens Festival Final Team 2022"]
[Site "Tornelo"]
[Date "2022.06.26"]
[Round "2.6"]
[White "Krush, Irina"]
[Black "Alboredo, Julia"]
[Result "1-0"]
[ECO "E92"]
[WhiteElo "2430"]
[BlackElo "2252"]
[Annotator "TA"]
[PlyCount "119"]
[EventDate "2022.06.24"]
[EventType "team-tourn"]
[EventCountry "NET"]
[SourceTitle "playchess.com"]
[Source "ChessBase"]
[SourceQuality "1"]
[WhiteTeam "United States"]
[BlackTeam "Brazil"]
[WhiteTeamCountry "USA"]
[BlackTeamCountry "BRA"]
[TimeControl "180+2"]

{[%evp 16,119,31,33,37,38,51,46,52,55,49,27,27,34,54,36,51,44,39,49,49,45,68,71,93,90,115,56,110,75,87,58,56,25,102,0,28,16,20,0,0,0,0,0,0,0,0,0,0,0,151,137,180,182,173,162,165,84,129,121,274,275,312,152,460,323,318,314,314,0,0,-319,1275,891,1702,1735,1754,1677,1645,1577,1934,1493,29975,6721,29984,29985,29987,29988,29990,29991,29991,29992,29992,29993,29993,29992,29992,29993,29993,29994,29994,29995,29995,29996,29999,29997]} 1. d4 {[%emt 0:00:02]} Nf6 {[%emt 0:00:05]} 2. c4 {[%emt 0:00:02]} g6 {[%emt 0:00:01]} 3. Nc3 {[%emt 0:00:02]} Bg7 {[%emt 0:00:02]} 4. e4 {[%emt 0:00:01]} d6 {[%emt 0:00:01]} 5. Nf3 {[%emt 0:00:03]} O-O {[%emt 0:00:01]} 6. Be2 {[%emt 0:00:02]} e5 {[%emt 0:00:01]} 7. d5 {[%emt 0:00:01]} a5 {[%emt 0:00:02]} 8. h3 {[%emt 0:00:01]} Na6 {[%emt 0:00:03]} 9. Bg5 {[%emt 0:00:02]} Bd7 {[%emt 0:00:03] E92: King's Indian: Classical: 6 Be2 e5: 7 dxe5, 7 Be3 and Petrosian System without 7...Nbd7.} 10. Nd2 {[%emt 0:00:03]} h6 {[%emt 0:00:02]} 11. Be3 {[%emt 0:00:13]} Nh7 {[%emt 0:00:05] White is slightly better.} 12. g4 $1 {[%emt 0:00:11]} Nc5 {[%emt 0:00:10]} 13. Nb3 {[%emt 0:00:26]} Nxb3 {[%emt 0:00:19] [#]} 14. Qxb3 $146 {[%emt 0:00:04]} ({Predecessor:} 14. axb3 Qh4 15. c5 dxc5 16. Bxc5 Rfc8 17. Kf1 Nf6 18. f3 Ne8 19. Kg2 Bf8 20. Be3 {½-½ (86) Belov,V (2596)-Khairullin,I (2538) Kazan 2005}) 14... f5 {[%emt 0:00:04]} 15. gxf5 {[%emt 0:00:18]} (15. Qxb7 f4 16. Bc1 Rb8 $11) 15... gxf5 {[%emt 0:00:00]} 16. O-O-O {[%emt 0:00:06]} (16. Qxb7 Rb8 17. Qa7 Rxb2 $11) 16... f4 {[%emt 0:00:02]} 17. Bd2 {[%emt 0:00:02]} a4 {[%emt 0:00:55]} 18. Qc2 {[%emt 0:00:03]} Nf6 {[%emt 0:00:03]} 19. Rdg1 {[%emt 0:00:03]} Kh7 {[%emt 0:00:03]} 20. Bg4 {[%emt 0:00:05]} Qe7 {[%emt 0:00:06]} (20... Nxg4 21. hxg4 Kg8 22. a3 $14) 21. Bxd7 {[%emt 0:00:11]} (21. a3 $16) 21... Nxd7 {[%emt 0:00:00]} (21... Qxd7 $14 22. Bxf4 exf4 23. e5+ Kh8 24. exf6 Rxf6) 22. f3 {[%emt 0:00:07]} Bf6 {[%emt 0:00:02]} 23. Nb5 {[%emt 0:00:12]} Nc5 {[%emt 0:00:06]} 24. Kb1 {[%emt 0:00:02][%cal Od2f4]} Rg8 {[%emt 0:00:04] [#]} (24... c6 $11 25. Nc3 Bh4) 25. Be1 {[%emt 0:00:07]} (25. Bxf4 $1 $16 {[%mdl 512] Strongly threatening Be3.} c6 26. Nc3 $1 (26. Rxg8 Kxg8 27. Nxd6 exf4 $11)) 25... c6 $11 {[%emt 0:00:10]} 26. Nc3 {[%emt 0:00:03]} Bh4 {[%emt 0:00:15]} 27. Rg4 {[%emt 0:00:06]} (27. Rxg8 {keeps more tension.} Rxg8 28. Nxa4 Nxa4 29. Qxa4 Bxe1 30. Rxe1 c5 31. h4) 27... Bxe1 {[%emt 0:00:04]} 28. Rxe1 {[%emt 0:00:01]} h5 {[%emt 0:00:01]} 29. Rxg8 {[%emt 0:00:03]} Rxg8 {[%emt 0:00:01]} 30. Nxa4 {[%emt 0:00:01]} Nxa4 {[%emt 0:00:02]} 31. Qxa4 {[%emt 0:00:01][%mdl 4096] Endgame KQR-KQR} Qh4 {[%emt 0:00:01][%csl LRe1,LRh3]} 32. Rc1 {[%emt 0:00:07]} Rg2 $2 {[%emt 0:00:09]} (32... Qxh3 $11 33. dxc6 Qxf3) 33. dxc6 {[%emt 0:00:02]} Qf2 {[%emt 0:00:03][%csl Gg2][%cal Rf2b2]} 34. Qb3 {[%emt 0:00:17]} bxc6 {[%emt 0:00:01]} 35. a4 {[%emt 0:00:09][%cal Oc4c5] And now c5! would win.} (35. c5 dxc5 36. a4 Rg7 $16) 35... Qc5 {[%emt 0:00:03]} 36. Rc3 {[%emt 0:00:07]} (36. h4 $18) 36... Rg1+ {[%emt 0:00:10] [#]} (36... Qf2 $2 37. c5 dxc5 38. Ka2 $18) 37. Ka2 $1 {[%emt 0:00:02]} Rh1 $2 {[%emt 0:00:04]} (37... h4 $16 {was worth a try.} 38. Qb7+ Rg7) 38. Qb7+ $18 {[%emt 0:00:04]} Kh6 {[%emt 0:00:02]} 39. Qd7 {[%emt 0:00:03]} (39. Qc8 $18) 39... Kg5 $2 {[%emt 0:00:09]} (39... Rg1 $16 {is tougher.} 40. h4 Rg7 41. Qe6+ Rg6) 40. Qe7+ {[%emt 0:00:02]} Kg6 {[%emt 0:00:03]} 41. Qe6+ {[%emt 0:00:02]} Kg5 {[%emt 0:00:02]} 42. Ra3 $2 {[%emt 0:00:08]} ({Better is} 42. Qf5+ $18 Kh4 43. Qf6+ Kxh3 44. Qg5) 42... Rc1 {[%emt 0:00:09] White must now prevent ...Kh4.} 43. a5 $2 {[%emt 0:00:01][%mdl 8192]} (43. Qe7+ $11 Kg6 44. Qe8+ (44. Qe6+ Kg5 $14) 44... Kg7 45. Qe7+ (45. Qxh5 Qxc4+ 46. Rb3 Qxa4+ 47. Ra3 Qc4+ 48. Rb3 Qa6+ 49. Ra3 Qc4+ 50. Rb3 Rg1 $17) 45... Kg6 46. Rc3 (46. Qe6+ Kg5 $11) 46... Rxc3 47. Qe6+ Kg7 48. Qe7+ Kh6 49. bxc3) 43... Qg1 $4 {[%emt 0:00:25][%mdl 8192]} (43... Qxc4+ $2 44. Qxc4 Rxc4 45. a6 $18) (43... Kh4 $19 44. a6 d5 45. Qf6+ (45. Qxe5 $2 Qxc4+ 46. Rb3 Qxa6+ 47. Ra3 Qc4+ 48. Rb3 Qa4+ 49. Ra3 Qd1 $19) 45... Kg3 46. Qg5+ (46. Qxe5 $2 Qxc4+ 47. b3 Qe2+ 48. Qb2 Rc2 $19) 46... Kh2) 44. Qg8+ {[%emt 0:00:03]} Kh4 {[%emt 0:00:02]} 45. Qxg1 {[%emt 0:00:02]} Rxg1 {[%emt 0:00:00] KR-KR} 46. a6 {[%emt 0:00:01]} Rg8 {[%emt 0:00:01]} 47. a7 {[%emt 0:00:03]} Ra8 {[%emt 0:00:01] [#]} 48. b4 $1 {[%emt 0:00:01] Hoping for b5.} Kxh3 {[%emt 0:00:03]} 49. b5 {[%emt 0:00:01] White threatens b6 and mate.} cxb5 {[%emt 0:00:01]} 50. cxb5 {[%emt 0:00:01] White mates.} Kg3 {[%emt 0:00:00]} 51. b6 {[%emt 0:00:01]} h4 {[%emt 0:00:01]} 52. b7 {[%emt 0:00:01]} Rxa7 {[%emt 0:00:05]} 53. Rxa7 {[%emt 0:00:01] KR-KP} h3 {[%emt 0:00:01]} 54. b8=Q {[%emt 0:00:02]} h2 {[%emt 0:00:01]} 55. Qh8 {[%emt 0:00:04]} Kg2 {[%emt 0:00:02]} 56. Rg7+ {[%emt 0:00:01]} Kxf3 {[%emt 0:00:00]} 57. Qxh2 {[%emt 0:00:02]} Kxe4 {[%emt 0:00:00]} 58. Qe2+ {[%emt 0:00:02]} Kf5 {[%emt 0:00:02]} 59. Qd3+ {[%emt 0:00:03]} Kf6 {[%emt 0:00:02]} 60. Rg6+ {[%emt 0:00:01] Weighted Error Value: White=0.36/Black=0.39} 1-0